bitfinex-derivatives/quotes_ETHF0:USTF0_20250114
["timestamp","ask_amount","ask_price","bid_price","bid_amount"]
[1736867491784,3.24768121,3210.1,3209.8,3.2078]
[1736867492487,3.24768121,3210.1,3209.9,40.8]
[1736867492687,3.24768121,3210.1,3209.8,3.2078]
[1736867493188,3.24768121,3210.1,3209.8,44.0078]
[1736867493584,1.0715,3210.7,3209.8,44.0078]
[1736867493887,3.32520938,3210.6,3210.2,3.2078]
[1736867494284,0.5672,3211.0,3210.2,3.2078]
[1736867494479,0.5672,3211.0,3210.6,3.2078]
[1736867494680,3.36971373,3210.9,3210.6,3.2078]
[1736867494880,0.5524,3211.2,3210.6,3.2078]
[1736867495079,0.5524,3211.2,3210.5,3.28878089]
[1736867495080,0.5524,3211.2,3211.1,3.2078]
[1736867495289,3.28878089,3212.0,3211.1,3.2078]
[1736867495687,3.5830089,3211.3,3211.1,3.2078]
[1736867495883,3.28878089,3212.0,3211.1,3.2078]
[1736867496289,3.4885104,3211.3,3211.1,3.2078]
[1736867496485,4.3633704,3211.9,3211.1,3.2078]
[1736867496794,3.4885104,3211.4,3211.1,3.2078]
[1736867497176,0.87486,3211.9,3211.1,3.2078]
[1736867497485,3.3738524,3211.4,3211.1,3.2078]
[1736867497680,3.9138524,3211.7,3211.1,3.2078]
[1736867497882,3.3738524,3211.6,3211.1,3.2078]
[1736867498183,0.54,3211.7,3211.1,3.2078]
[1736867498489,3.50553936,3211.6,3211.5,3.2078]
[1736867498783,5.12719089,3212.3,3211.5,3.2078]
[1736867498984,3.50553936,3211.8,3211.6,40.8]
[1736867499186,5.12719089,3212.3,3211.6,40.8]
[1736867499187,3.24604406,3212.0,3211.6,40.8]
[1736867499384,5.12719089,3212.3,3211.6,40.8]
[1736867499587,3.28878089,3212.3,3211.5,3.2078]
[1736867499784,3.24604406,3211.9,3211.5,3.2078]
[1736867500088,0.31142,3212.2,3211.5,3.2078]
[1736867500289,3.27461942,3211.8,3211.5,3.2078]
[1736867500490,3.27461942,3212.0,3211.5,3.2078]
[1736867500691,0.31144,3212.0,3211.5,3.2078]
[1736867501092,3.27461942,3211.9,3211.5,3.2078]
[1736867502693,0.31146,3211.8,3211.5,3.2078]
[1736867502991,0.31144,3212.0,3211.5,3.2078]
[1736867503186,3.45488203,3211.7,3211.5,3.2078]
[1736867503382,3.24352252,3211.9,3211.5,3.2078]
[1736867503794,0.31144,3212.0,3211.5,3.2078]
[1736867504094,3.60429341,3211.9,3211.5,3.2078]
[1736867505393,1.91614,3213.1,3211.7,0.31147]
[1736867505591,1.91614,3213.1,3212.6,3.2078]
[1736867505984,3.4675268,3213.0,3212.6,3.2078]
[1736867508397,3.7788668,3213.0,3212.6,3.2078]
[1736867508597,3.4675268,3213.0,3212.6,3.2078]
[1736867512097,3.4081517,3213.2,3212.6,3.2078]
[1736867512398,0.5637,3213.3,3212.6,3.2078]
[1736867512598,3.38135644,3213.2,3212.6,3.2078]
[1736867513594,3.38135644,3213.2,3213.0,3.2078]
[1736867513799,0.557,3213.6,3213.0,3.2078]
[1736867514199,3.53850381,3213.5,3213.0,3.2078]
[1736867514708,3.53850381,3213.7,3213.0,3.2078]
[1736867514894,3.53850381,3213.8,3213.0,3.2078]
[1736867515096,0.31127,3213.8,3213.0,3.2078]
[1736867515293,3.57809794,3213.8,3213.0,3.2078]
[1736867515805,3.57809794,3213.8,3213.5,3.2078]
[1736867515997,6.86687883,3213.8,3213.5,3.2078]
[1736867518407,3.57809794,3213.8,3213.5,3.2078]
[1736867520006,6.86687883,3213.8,3213.5,3.2078]
[1736867520903,3.57809794,3213.8,3213.5,3.2078]
[1736867522008,6.86687883,3213.8,3213.5,3.2078]
[1736867522709,3.26682794,3213.8,3213.5,3.2078]
[1736867523906,6.55560883,3213.8,3213.5,3.2078]
[1736867524411,0.31127,3213.7,3213.5,3.2078]
[1736867524909,3.53396407,3213.6,3213.5,3.2078]
[1736867525403,3.53396407,3213.6,3213.1,3.2078]
[1736867525404,0.31129,3213.5,3213.1,3.2078]
[1736867525804,3.58996524,3213.4,3213.1,3.2078]
[1736867527415,2.70351121,3213.2,3212.7,4.3364]
[1736867527798,0.5532,3213.3,3212.7,4.3364]
[1736867527799,0.5532,3213.3,3213.1,3.2078]
[1736867528004,0.31127,3213.7,3213.1,3.2078]
[1736867528206,3.41747433,3213.2,3213.1,3.2078]
[1736867528403,3.41747433,3213.4,3213.1,3.2078]
[1736867528605,3.41747433,3213.6,3213.1,3.2078]
[1736867528606,3.25671121,3213.8,3213.1,3.2078]
[1736867528802,3.41747433,3213.7,3213.1,3.2078]
[1736867529013,3.41747433,3213.3,3213.1,3.2078]
[1736867529312,3.32297736,3213.7,3213.1,3.2078]
[1736867529609,3.25671121,3213.8,3213.1,3.2078]
[1736867529809,3.32297736,3213.7,3213.1,3.2078]
[1736867530400,3.32297736,3213.7,3213.5,3.2078]
[1736867531311,3.51399815,3214.1,3213.5,3.2078]
[1736867531501,0.80643964,3214.1,3213.9,3.2078]
[1736867531706,0.31123,3214.1,3213.9,3.2078]
[1736867532003,3.82522815,3214.1,3213.9,3.2078]
[1736867532204,3.51399815,3214.1,3213.9,3.2078]
[1736867532907,3.46891899,3214.2,3213.9,3.2078]
[1736867533109,1.02733264,3214.4,3213.9,3.2078]
[1736867533306,3.48823031,3214.2,3213.9,5.91131121]
[1736867533712,0.5319,3214.4,3214.0,40.8]
[1736867534215,3.48823031,3214.1,3214.0,40.8]
[1736867534513,0.5319,3214.4,3214.0,40.8]
[1736867534705,0.5319,3214.4,3214.3,3.2078]
[1736867535111,3.92806311,3214.4,3214.3,3.2078]
[1736867535305,4.42396459,3214.4,3214.3,3.2078]
[1736867535614,3.89206459,3214.4,3214.3,3.2078]
[1736867535915,3.39616311,3214.4,3214.3,3.2078]
[1736867536302,3.39616311,3214.4,3214.3,44.0078]
[1736867537615,0.49590148,3214.8,3214.3,44.0078]
[1736867537815,0.5527,3214.9,3214.3,44.0078]
[1736867538006,3.29451844,3214.7,3214.3,40.8]
[1736867538206,3.29451844,3214.8,3214.6,3.2078]
[1736867538406,3.28714749,3214.9,3214.6,3.2078]
[1736867538607,0.77792,3214.8,3213.8,3.2078]
[1736867538815,2.70351121,3214.1,3213.8,3.2078]
[1736867539008,0.77799,3214.5,3213.8,3.2078]
[1736867539009,0.49590148,3214.5,3213.8,3.2078]
[1736867539217,0.49590148,3214.6,3214.2,3.2078]
[1736867539511,3.41158252,3214.6,3214.2,3.2078]
[1736867539916,1.6975,3214.8,3214.2,3.2078]
[1736867540105,0.00521354,3214.4,3214.2,3.2078]
[1736867540709,0.00521354,3214.4,3214.2,5.91131121]
[1736867541812,0.00521354,3214.4,3214.2,6.16209925]
[1736867543617,3.36208897,3214.3,3214.2,3.2078]
[1736867544130,3.93198897,3214.3,3213.8,3.2078]
[1736867544316,3.36208897,3214.3,3214.2,3.2078]
[1736867544621,3.32626097,3214.3,3214.2,3.2078]
[1736867545021,0.00521354,3214.4,3214.2,3.2078]
[1736867547014,0.00521354,3214.4,3214.3,2.70351121]
[1736867551129,3.37633125,3214.4,3214.2,3.2078]
[1736867551429,3.68754125,3214.4,3213.8,3.2078]
[1736867551630,1.6756,3214.3,3213.8,3.2078]
[1736867551924,0.31122,3214.2,3213.8,3.2078]
[1736867552126,3.87696197,3214.2,3213.8,3.2078]
[1736867552529,6.58047318,3214.2,3213.8,3.2078]
[1736867553026,3.87696197,3214.2,3213.8,3.2078]
[1736867553228,3.56574197,3214.2,3213.8,3.2078]
[1736867557129,3.87697197,3214.2,3213.8,3.2078]
[1736867557429,4.37313224,3214.2,3213.8,3.2078]
[1736867557627,8.42496817,3214.2,3213.8,1.4316]
[1736867557929,0.31128,3213.7,3213.4,3.2078]
[1736867558132,3.2078,3213.9,3213.4,3.2078]
[1736867558325,3.37741383,3213.6,3213.4,3.2078]
[1736867558630,3.37741383,3213.8,3213.4,3.2078]
[1736867558928,3.51905,3213.9,3213.4,3.2078]
[1736867559135,3.37741383,3213.8,3213.4,3.2078]
[1736867566736,3.37741383,3213.8,3213.2,40.8]
[1736867567234,3.68868383,3213.8,3213.0,3.45466757]
[1736867567434,3.37741383,3213.8,3213.0,3.45466757]
[1736867567630,3.37741383,3213.8,3213.1,40.8]
[1736867572539,3.37741383,3213.8,3213.3,3.2078]
[1736867572729,0.48534827,3214.0,3213.3,3.2078]
[1736867572926,3.82004646,3214.0,3213.3,3.2078]
[1736867573130,3.82004646,3214.0,3213.4,40.8]
[1736867573331,3.69314827,3214.1,3213.4,40.8]
[1736867573535,3.46199785,3213.9,3213.4,40.8]
[1736867573734,0.48534827,3214.0,3213.4,40.8]
[1736867573940,3.46199785,3214.0,3213.7,3.2078]
[1736867574142,3.2078,3214.1,3213.8,0.5459]
[1736867574336,0.5438,3214.2,3213.8,0.5459]
[1736867574544,3.46262871,3214.0,3213.8,3.24795467]
[1736867574746,2.78054452,3214.1,3213.9,5.90985467]
[1736867574940,3.46262871,3214.3,3214.0,2.70205467]
[1736867575141,0.00521354,3214.4,3214.0,2.70205467]
[1736867575339,0.00521354,3214.4,3214.3,2.70205467]
[1736867575542,0.00521354,3214.4,3214.3,46.70985467]
[1736867577141,3.2078,3215.2,3214.4,0.3112]
[1736867577346,3.2078,3215.2,3214.7,3.2078]
[1736867577533,3.25673848,3215.1,3214.7,3.2078]
[1736867577739,3.25673848,3215.1,3215.0,2.70205467]
[1736867578248,3.25673848,3215.1,3214.7,5.90985467]
[1736867578947,0.5847,3215.5,3214.7,5.90985467]
[1736867578948,3.4891464,3215.4,3214.7,5.90985467]
[1736867579149,1.0593596,3215.5,3214.7,5.90985467]
[1736867579352,3.59763357,3215.4,3214.7,5.90985467]
[1736867579650,3.59763357,3215.4,3214.7,3.2078]
[1736867580444,3.59763357,3215.4,3214.7,6.22102467]
[1736867581149,3.28699235,3215.5,3214.7,6.22102467]
[1736867581343,3.76165195,3215.5,3214.7,6.22102467]
[1736867581548,0.4746596,3215.6,3215.1,3.2078]
[1736867581751,3.2622236,3215.4,3215.2,1.1437]
[1736867582050,3.2622236,3215.5,3215.2,1.1437]
[1736867582250,3.5733236,3215.5,3215.1,3.2078]
[1736867582446,0.5638,3215.4,3214.7,3.2078]
[1736867582649,3.2078,3215.3,3214.7,3.2078]
[1736867582855,4.13513392,3215.4,3214.7,5.90985467]
[1736867583054,3.57133392,3215.2,3215.0,2.70205467]
[1736867583348,0.47415463,3215.5,3215.0,2.70205467]
[1736867583349,3.57133392,3215.3,3215.1,3.7576]
[1736867583559,3.28500488,3215.5,3215.1,3.7576]
[1736867583757,0.5613,3215.7,3215.1,3.7576]
[1736867584059,3.28500488,3215.4,3215.1,3.7576]
[1736867584251,3.28500488,3215.5,3215.1,3.7576]
[1736867584452,3.28500488,3215.6,3215.1,3.7576]
[1736867584453,0.5613,3215.7,3215.1,3.7576]
[1736867584756,3.43276519,3215.4,3215.1,3.7576]
[1736867585060,0.5613,3215.7,3215.1,3.7576]
[1736867585355,3.51656191,3215.3,3215.1,3.7576]
[1736867585557,3.51656191,3215.4,3215.1,4.00622818]
[1736867585749,3.16279978,3215.6,3215.1,4.00622818]
[1736867586060,3.51656191,3215.3,3215.1,4.00622818]
[1736867586260,3.51656191,3215.4,3215.1,4.00622818]
[1736867586468,0.5613,3215.7,3215.1,4.00622818]
[1736867586659,3.59626775,3215.3,3215.1,4.00622818]
[1736867587057,0.5613,3215.7,3215.1,0.5498]
[1736867587350,3.42242571,3215.4,3215.1,0.5498]
[1736867587560,2.70205467,3215.3,3215.0,3.2078]
[1736867587758,5.90985467,3215.3,3214.6,3.8017]
[1736867587959,3.20900099,3215.2,3214.6,3.8017]
[1736867588464,3.20900099,3215.2,3214.8,2.70205467]
[1736867588765,2.0749,3215.5,3215.0,3.2078]
[1736867588950,2.0749,3215.5,3214.8,2.70205467]
[1736867588951,9.34442452,3215.4,3214.6,3.8017]
[1736867589150,2.70205467,3215.1,3214.6,3.8017]
[1736867589366,0.5799,3215.0,3214.6,3.8017]
[1736867589558,4.46342097,3215.0,3214.6,3.8017]
[1736867589756,4.46342097,3215.0,3214.6,3.2078]
[1736867590659,0.31117,3214.7,3214.2,3.7889]
[1736867590967,3.2078,3214.9,3214.2,3.7889]
[1736867591257,3.386946,3214.6,3214.2,41.3811]
[1736867591457,3.386946,3214.7,3214.4,2.70205467]
[1736867591762,3.2078,3215.4,3214.6,3.2078]
[1736867592164,3.2407356,3214.9,3214.6,3.2078]
[1736867592358,3.2407356,3215.3,3214.7,2.70205467]
[1736867592659,3.25154688,3214.9,3214.6,3.2078]
[1736867593056,0.5615,3215.6,3214.6,3.45318078]
[1736867593455,3.50614475,3214.9,3214.6,3.45318078]
[1736867593663,2.70205467,3215.1,3214.6,3.2078]
[1736867593958,3.50614475,3214.8,3214.6,3.2078]
[1736867594156,1.69334475,3214.8,3214.7,2.70205467]
[1736867594357,0.5615,3215.6,3214.7,3.30185467]
[1736867594859,3.28848378,3215.3,3214.7,0.5998]
[1736867595064,0.5882,3215.2,3214.7,0.5998]
[1736867595360,6.25718779,3215.1,3214.6,3.2078]
[1736867597458,2.70205467,3214.7,3214.6,3.2078]
[1736867597965,3.33802972,3214.7,3214.6,3.2078]
[1736867598463,2.70205467,3214.7,3214.0,3.2078]
[1736867598764,3.7573,3214.9,3214.3,2.70205467]
[1736867598957,3.43874381,3214.6,3214.1,40.8]
[1736867599162,0.5507,3214.5,3214.1,40.8]
[1736867599565,3.32541416,3214.4,3214.1,40.8]
[1736867599966,3.32541416,3214.4,3214.3,2.70205467]
[1736867600158,3.32541416,3214.4,3214.1,40.8]
[1736867602371,3.32541416,3214.4,3214.3,2.70205467]
[1736867602571,0.5512,3214.8,3214.3,2.70205467]
[1736867602971,3.25207631,3214.7,3214.4,3.2078]
[1736867604271,0.5718,3215.2,3214.6,2.70205467]
[1736867604471,0.5718,3215.2,3214.9,3.2078]
[1736867604672,0.06907114,3215.1,3214.9,3.2078]
[1736867605468,0.06907114,3215.1,3214.9,5.90985467]
[1736867605770,0.5845,3215.6,3214.9,5.90985467]
[1736867605975,3.43015117,3215.5,3214.9,5.90985467]
[1736867606474,3.43015117,3215.5,3215.3,3.2078]
[1736867607564,3.45534188,3215.6,3215.3,3.2078]
[1736867607769,0.5718,3215.7,3215.4,40.8]
[1736867608169,3.45534188,3215.6,3215.4,40.8]
[1736867609066,3.45534188,3215.6,3215.3,3.2078]
[1736867609668,3.45534188,3215.6,3215.3,44.0078]
[1736867610075,3.45534188,3215.6,3215.3,3.2078]
[1736867610563,4.4782513,3215.6,3215.3,3.2078]
[1736867610768,4.4782513,3215.6,3214.9,0.25429414]
[1736867610769,4.4782513,3215.6,3214.9,3.2078]
[1736867610966,2.70205467,3215.4,3214.9,3.2078]
[1736867611162,4.22105467,3215.4,3214.9,3.2078]
[1736867611375,3.79532853,3215.3,3214.9,3.2078]
[1736867611576,4.25843795,3215.3,3214.9,3.2078]
[1736867611877,0.5578,3215.2,3214.9,3.2078]
[1736867612175,0.5578,3215.2,3214.4,40.8]
[1736867612176,6.31075557,3215.1,3214.4,40.8]
[1736867612375,1.02140942,3215.0,3214.4,40.8]
[1736867612770,3.4865394,3214.9,3214.4,40.8]
[1736867612979,3.4865394,3214.9,3214.4,3.2078]
[1736867613171,0.31124,3214.1,3212.9,3.2078]
[1736867613376,2.70205467,3213.4,3212.9,3.2078]
[1736867613574,3.2078,3213.1,3212.9,40.8]
[1736867613776,3.41387816,3213.3,3212.9,40.8]
[1736867614075,3.48209185,3213.0,3212.9,40.8]
[1736867614265,0.46392473,3213.3,3212.9,40.8]
[1736867614470,3.2078,3213.1,3212.9,40.8]
[1736867614871,3.44456234,3213.0,3212.9,43.50205467]
[1736867615072,3.2078,3213.6,3212.9,52.02120467]
[1736867615271,3.2078,3213.6,3213.3,2.70205467]
[1736867615468,3.2078,3213.6,3213.4,1.1442]
[1736867615977,3.39873603,3213.5,3213.4,1.1442]
[1736867616275,3.2078,3213.6,3213.4,1.1442]
[1736867619380,3.2078,3213.6,3212.9,44.25608059]
[1736867619381,3.3594328,3213.5,3212.9,44.25608059]
[1736867619582,3.3594328,3213.5,3212.9,44.0078]
[1736867620275,3.3594328,3213.5,3213.0,3.27438541]
[1736867620675,3.3594328,3213.5,3213.0,3.58572541]
[1736867621080,3.3594328,3213.5,3213.0,3.27438541]
[1736867622180,3.3594328,3213.5,3213.1,0.31133]
[1736867622374,4.7278,3214.0,3213.3,6.48218541]
[1736867622681,3.41679979,3213.9,3213.3,6.48218541]
[1736867622876,3.41679979,3213.9,3213.3,3.2078]
[1736867624680,3.41679979,3213.9,3213.3,6.48218541]
[1736867624882,3.2078,3214.4,3213.7,3.27438541]
[1736867625079,3.2078,3214.4,3213.8,1.1413]
[1736867625382,3.2078,3214.4,3213.9,40.8]
[1736867625383,3.48460637,3214.3,3213.9,40.8]
[1736867625682,3.48460637,3214.3,3213.8,1.1413]
[1736867625887,0.5338,3214.2,3213.8,1.1413]
[1736867626074,0.5338,3214.2,3213.4,40.8]
[1736867626274,3.4818205,3214.1,3213.4,41.9413]
[1736867626776,3.4818205,3214.1,3211.7,4.87473652]
[1736867626777,0.31139,3212.6,3211.7,4.87473652]
[1736867626979,3.27438541,3211.8,3211.7,4.87473652]
[1736867627186,6.48218541,3211.8,3211.7,4.87473652]
[1736867627485,9.87964549,3211.8,3211.7,4.87473652]
[1736867627680,6.67184549,3211.8,3211.7,4.87473652]
[1736867627882,1.1265,3212.5,3211.7,3.2078]
[1736867628085,3.2078,3212.3,3211.5,0.31148]
[1736867628283,3.27438541,3211.8,3211.0,0.31153]
[1736867628676,3.58811611,3211.7,3211.3,3.2078]
[1736867628980,3.58811611,3211.7,3211.2,3.2078]
[1736867629182,3.2078,3212.1,3211.2,3.2078]
[1736867629378,3.2078,3212.1,3211.3,0.3115]
[1736867629577,3.57724791,3212.0,3211.3,0.3115]
[1736867629879,3.27438541,3211.9,3211.2,3.2078]
[1736867630273,4.11514791,3211.8,3211.2,3.2078]
[1736867631277,3.57724791,3211.8,3211.2,3.2078]
[1736867631481,3.57724791,3211.8,3211.6,3.2078]
[1736867631783,3.27438541,3212.0,3211.3,3.2078]
[1736867631986,3.2078,3212.1,3211.3,3.2078]
[1736867632280,3.44252761,3211.9,3211.3,3.2078]
[1736867632485,3.44252761,3212.0,3211.3,3.2078]
[1736867632688,3.2078,3212.1,3211.3,3.2078]
[1736867632880,6.52518946,3212.0,3211.3,3.2078]
[1736867633077,6.52518946,3212.0,3211.4,40.8]
[1736867633390,3.25080405,3212.0,3211.4,40.8]
[1736867633887,6.52518946,3212.0,3211.4,40.8]
[1736867634283,3.2078,3211.6,3211.4,40.8]
[1736867634689,3.27573329,3211.5,3211.4,40.8]
[1736867635889,3.82023329,3211.5,3210.5,3.7513]
[1736867636087,3.82023329,3211.5,3210.6,0.5788]
[1736867636388,3.82023329,3211.5,3210.6,41.3788]
[1736867636786,3.82023329,3211.5,3210.6,41.69036]
[1736867636984,3.82023329,3211.5,3210.6,41.3788]
[1736867637182,3.27438541,3211.1,3210.5,3.4607754]
[1736867637384,3.2078,3211.0,3210.5,3.4607754]
[1736867637585,6.56232748,3211.0,3210.5,3.4607754]
[1736867637790,6.56232748,3211.0,3210.5,0.2529754]
[1736867638086,6.56232748,3211.0,3210.2,41.1116]
[1736867638087,3.35452748,3211.0,3210.7,3.2078]
[1736867638287,0.5445,3211.5,3210.8,0.31155]
[1736867638491,0.5445,3211.5,3210.8,1.43975]
[1736867638693,3.32566484,3211.3,3210.8,1.43975]
[1736867638892,3.32566484,3211.4,3211.0,0.31152]
[1736867639190,3.32566484,3211.5,3211.1,3.2078]
[1736867639490,3.47465645,3211.9,3211.2,0.31151]
[1736867639890,3.2078,3212.0,3211.1,3.2078]
[1736867640091,3.47465645,3211.9,3211.1,3.2078]
[1736867640286,3.47465645,3211.9,3211.5,3.2078]
[1736867640484,3.27438541,3213.3,3212.2,0.31142]
[1736867640689,3.2078,3213.4,3212.4,3.2078]
[1736867640988,3.60157693,3213.1,3212.8,3.2078]
[1736867641188,3.2078,3213.4,3212.8,3.2078]
[1736867641391,3.60157693,3213.0,3212.8,3.2078]
[1736867641693,3.2078,3213.4,3212.8,3.2078]
[1736867641694,3.56468213,3213.3,3212.8,3.2078]
[1736867641896,3.2078,3213.4,3212.8,3.2078]
[1736867642089,3.56468213,3213.3,3212.8,3.2078]
[1736867642988,3.56468213,3213.3,3213.2,3.2078]
[1736867643492,0.5498,3213.6,3213.2,3.2078]
[1736867643493,3.60872371,3213.4,3213.2,3.2078]
[1736867643795,3.44660771,3213.5,3213.2,3.2078]
[1736867644093,0.5498,3213.6,3213.2,3.2078]
[1736867644489,3.44660771,3213.5,3213.2,3.2078]
[1736867647195,3.44660771,3213.5,3213.0,0.25382419]
[1736867647392,3.44660771,3213.5,3212.6,3.7698]
[1736867647897,3.44660771,3213.5,3212.6,4.08117]
[1736867648496,3.44660771,3213.5,3212.6,4.3365934]
[1736867649197,3.44660771,3213.5,3212.6,3.4632234]
[1736867650891,3.44660771,3213.5,3212.6,3.2078]
[1736867651100,3.2078,3213.3,3212.6,3.2078]
[1736867651488,3.33215955,3213.2,3212.6,44.0078]
[1736867651690,3.33215955,3213.2,3212.6,44.31917]
[1736867651898,3.33215955,3213.2,3213.0,3.2078]
[1736867654197,3.33215955,3213.2,3212.7,0.5409]
[1736867654198,3.33215955,3213.2,3212.6,44.0078]
[1736867654403,3.27438541,3212.7,3212.0,3.2078]
[1736867654703,4.31852609,3212.6,3212.0,3.2078]
[1736867654895,4.82122609,3212.6,3212.0,3.2078]
[1736867655997,3.27438541,3212.3,3212.0,3.2078]
[1736867656190,3.27438541,3212.3,3211.1,3.2078]
[1736867656191,3.2078,3212.2,3211.1,3.2078]
[1736867656403,6.52452906,3212.2,3211.1,3.71454802]
[1736867656595,6.52452906,3212.2,3211.2,40.8]
[1736867656795,3.27438541,3212.0,3211.2,40.8]
[1736867657100,3.27438541,3211.7,3211.2,40.8]
[1736867657504,3.38770225,3211.6,3211.2,40.8]
[1736867659606,3.38770225,3211.6,3210.9,0.19675769]
[1736867659905,6.66208766,3211.6,3211.0,40.8]
[1736867660508,3.38770225,3211.6,3211.5,3.2078]
[1736867660710,3.2078,3212.2,3211.5,3.2078]
[1736867661006,3.52983761,3212.1,3211.5,6.48218541]
[1736867661207,3.52983761,3212.1,3211.5,3.2078]
[1736867661408,3.52983761,3212.1,3211.6,40.8]
[1736867663604,3.7105,3212.6,3211.6,40.8]
[1736867663812,3.56331156,3212.5,3211.9,3.2078]
[1736867664111,3.2078,3213.0,3212.0,3.58582541]
[1736867664411,3.56331156,3212.5,3212.0,0.31144]
[1736867664608,3.56331156,3212.9,3212.0,0.31144]
[1736867664811,3.2078,3213.0,3212.3,3.2078]
[1736867665013,3.4275645,3212.9,3212.3,3.2078]
[1736867665806,3.24693564,3213.1,3212.3,3.5192]
[1736867666105,3.2078,3213.4,3212.3,3.5192]
[1736867666305,3.2078,3213.4,3212.6,3.27438541]
[1736867666506,3.24693564,3213.1,3212.6,3.27438541]
[1736867666712,3.31640364,3213.3,3212.8,3.2078]
[1736867666907,3.2078,3213.4,3212.9,40.8]
[1736867667114,3.31640364,3213.3,3212.9,40.8]
[1736867667511,3.80410364,3213.3,3212.9,40.8]
[1736867669513,3.80410364,3213.3,3212.8,3.2078]
[1736867669917,3.80410364,3213.3,3212.9,40.8]
[1736867670416,3.80410364,3213.3,3212.8,3.2078]
[1736867670716,3.80410364,3213.3,3212.7,0.20330588]
[1736867670918,3.80410364,3213.3,3212.7,40.8]
[1736867671106,3.80410364,3213.3,3212.4,4.53349]
[1736867671107,7.01190364,3213.3,3212.4,4.42460617]
[1736867671301,10.28628905,3213.3,3212.4,4.42460617]
[1736867672212,3.27438541,3212.9,3212.4,3.2078]
[1736867672609,4.04327668,3212.8,3212.4,3.2078]
[1736867673011,4.04327668,3212.8,3212.0,44.0078]
[1736867673213,3.27438541,3212.6,3212.0,3.2078]
[1736867673514,3.4144518,3212.5,3212.0,3.2078]
[1736867673912,3.44341873,3212.7,3212.0,3.2078]
[1736867674114,0.98038549,3212.8,3212.0,3.2078]
[1736867674311,1.29174549,3212.8,3212.0,3.2078]
[1736867674514,3.44341873,3212.7,3212.0,3.2078]
[1736867674712,3.27438541,3212.6,3212.0,3.2078]
[1736867675119,3.82347644,3212.5,3212.0,3.2078]
[1736867680020,3.82347644,3212.5,3211.8,40.8]
[1736867680821,7.03127644,3212.5,3211.8,40.8]
[1736867681717,7.03127644,3212.5,3211.6,3.2078]
[1736867681920,3.27438541,3212.0,3211.6,3.2078]
[1736867682123,3.7159,3211.9,3211.1,3.2078]
[1736867682415,3.7159,3211.9,3210.8,0.5166]
[1736867682416,3.2078,3211.5,3210.8,0.5166]
[1736867682621,3.2078,3211.5,3210.7,3.2078]
[1736867682822,6.65306953,3211.4,3210.7,3.2078]
[1736867684226,3.37868412,3211.4,3210.7,3.2078]
[1736867685320,3.37868412,3211.4,3210.8,0.31155]
[1736867685517,3.37868412,3211.4,3210.9,0.5113]
[1736867688325,3.37868412,3211.4,3211.2,0.00237392]
[1736867690524,2.7828201,3211.4,3211.2,0.31388392]
[1736867690729,3.7223,3212.3,3211.2,0.31388392]
[1736867690924,3.7223,3212.3,3211.5,3.2078]
[1736867691230,3.7223,3212.3,3211.6,40.8]
[1736867691231,3.42054699,3211.8,3211.6,40.8]
[1736867691527,3.2078,3212.3,3211.7,0.4926]
[1736867691920,3.2872396,3212.2,3211.7,0.4926]
[1736867692120,3.2872396,3212.2,3211.8,40.8]
[1736867692630,3.2078,3212.3,3211.8,40.8]
[1736867692631,3.2078,3212.3,3211.8,41.11145]
[1736867692931,3.39478222,3212.2,3211.8,41.11145]
[1736867693324,3.39478222,3212.2,3211.9,3.2078]
[1736867694633,3.2078,3212.3,3211.8,40.8]
[1736867694823,3.2078,3212.3,3211.5,3.2078]
[1736867695126,3.2078,3211.9,3211.2,0.00237392]
[1736867695331,1.074,3211.8,3211.2,0.00237392]
[1736867695626,4.46171164,3211.8,3211.2,0.00237392]
[1736867698930,3.92521164,3211.8,3211.2,0.00237392]
[1736867699130,3.38771164,3211.8,3211.6,3.2078]
[1736867699332,3.2078,3212.3,3211.7,1.0398]
[1736867699635,3.5938007,3212.2,3211.7,1.0398]
[1736867699834,3.5938007,3212.2,3211.7,4.31418541]
[1736867700030,3.5938007,3212.2,3211.8,41.11146]
[1736867700731,3.5938007,3212.2,3212.0,3.2078]
[1736867701228,3.2078,3212.8,3212.1,0.31143]
[1736867701429,3.2078,3212.8,3212.4,3.2078]
[1736867701629,3.44836141,3212.7,3212.5,0.4972]
[1736867701826,3.44836141,3212.7,3212.5,1.0299]
[1736867702622,3.44836141,3212.7,3212.5,1.34129]
[1736867702827,3.44828067,3213.3,3212.6,3.27438541]
[1736867703023,1.0094,3213.4,3212.9,3.2078]
[1736867703528,3.44828067,3213.3,3213.0,40.8]
[1736867703927,3.53178417,3213.7,3213.0,40.8]
[1736867704131,3.2078,3213.4,3213.0,40.8]
[1736867704530,3.53178417,3213.3,3213.0,40.8]
[1736867705936,3.2078,3213.8,3213.0,40.8]
[1736867706138,3.23715726,3213.7,3213.0,40.8]
[1736867706541,3.27438541,3213.7,3212.9,3.2078]
[1736867706932,6.53580618,3213.7,3212.9,3.2078]
[1736867709332,0.31128,3213.6,3212.9,3.2078]
[1736867709537,3.2078,3213.2,3212.4,3.2078]
[1736867709736,0.5275,3213.1,3212.4,3.2078]
[1736867709930,5.02371258,3213.1,3212.4,3.2078]
[1736867711732,6.48218541,3212.8,3212.0,3.2078]
[1736867712038,1.5607,3213.1,3212.4,3.2078]
[1736867712240,3.41775822,3212.7,3212.4,3.2078]
[1736867712430,3.41775822,3212.7,3212.2,3.2078]
[1736867712735,1.5607,3213.1,3212.2,3.2078]
[1736867712940,3.48586114,3212.6,3212.2,3.2078]
[1736867713235,1.5607,3213.1,3212.2,3.2078]
[1736867713236,3.48586114,3212.9,3212.2,3.2078]
[1736867713439,1.5607,3213.1,3212.2,3.2078]
[1736867713636,3.48586114,3212.8,3212.2,3.2078]
[1736867713841,9.9087686,3212.9,3211.9,40.8]
[1736867714032,3.27438541,3212.0,3211.3,3.41580304]
[1736867714233,3.2078,3211.6,3210.8,3.7284]
[1736867714440,6.48218541,3211.6,3210.8,3.7284]
[1736867714635,6.48218541,3211.6,3210.8,3.93497563]
[1736867714636,3.42658319,3211.5,3210.8,3.93497563]
[1736867714841,3.42658319,3211.5,3210.8,3.7284]
[1736867716539,3.42658319,3211.5,3210.8,3.2078]
[1736867716737,3.27438541,3211.3,3210.8,3.2078]